[Event "45th FIDE Olympiad 2024"]
[Site "Budapest"]
[Date "2024.09.16"]
[Round "6.126"]
[White "Wageih, Kareim"]
[Black "Kayonde, Andrew"]
[Result "1-0"]
[ECO "A13"]
[WhiteElo "2402"]
[BlackElo "2338"]
[Annotator "TA"]
[PlyCount "151"]
[EventDate "2024.09.05"]
[EventType "team-tourn"]
[EventCountry "HUN"]
[SourceTitle "playchess.com"]
[Source "ChessBase"]
[SourceQuality "1"]
[WhiteTeam "Egypt"]
[BlackTeam "Zambia"]
[WhiteTeamCountry "EGY"]
[BlackTeamCountry "ZAM"]
[TimeControl "40/5400+30:1800+30"]

{[%evp 68,151,0,-14,-1,-19,0,0,0,-12,-8,-8,-6,-5,0,-14,0,0,0,-8,0,-34,0,-21,0,0,0,0,0,0,59,8,8,0,8,0,8,8,8,8,8,8,8,8,8,8,128,145,100,118,334,287,293,27,280,38,62,60,220,216,189,200,205,211,524,620,1749,2518,2681,0,833,0,5350,5022,29968,29971,29981,29982,29983,29984,29984,29985,29985,29986,29987,29988]} 1. Nf3 Nf6 2. b3 d5 3. Bb2 e6 4. e3 Bd6 5. c4 O-O 6. g3 {A13: English Opening: 1...e6.} Re8 7. d4 dxc4 8. bxc4 b6 9. Bg2 Bb7 10. O-O c5 11. Nbd2 Nbd7 12. Re1 Qc7 $146 ({Predecessor:} 12... Rc8 13. e4 Bb8 14. e5 Ng4 15. h3 Nh6 16. g4 cxd4 17. Bxd4 Nc5 18. Qe2 Rc7 {½-½ Deac,B (2700)-Boyer,M (2453) PRO League Prelim rapid 2023 (3.2)}) 13. Qb3 Rad8 14. Rad1 h6 15. Nb1 a6 16. a4 Rc8 17. Nbd2 Bc6 18. Nh4 Bxg2 19. Nxg2 Qc6 20. Bc3 cxd4 21. exd4 e5 22. d5 Qc7 23. Ne3 Nc5 24. Qc2 Qd7 25. a5 bxa5 26. Bxa5 e4 27. Bc3 Be5 28. Re2 Qh3 29. Bxe5 Rxe5 30. f4 exf3 31. Nxf3 Re4 32. Ng2 Qg4 33. Rxe4 Qxe4 34. Qxe4 Ncxe4 35. Ne5 Nd6 36. Nc6 Kf8 37. Ne3 Re8 38. Rd3 Nfe4 39. Ra3 Nc5 40. Kf2 g6 41. Kf3 h5 42. Nb4 g5 43. Kf2 (43. Nxa6 $2 Ra8 44. Nxc5 Rxa3 $19) 43... g4 44. Nbc2 (44. Nxa6 $2 {loses.} Ra8 45. Nxc5 Rxa3 $19) 44... Ra8 45. Nd4 a5 46. Nb3 ({Don't play} 46. Nb5 Ke7 $15) 46... Nde4+ 47. Ke2 Nc3+ 48. Kf1 N3a4 (48... Nxb3 $11 49. Rxb3 Ne4) 49. Nxc5 ({Better is} 49. Nf5 $14) 49... Nxc5 $11 50. Ke2 a4 51. Kd2 Re8 52. Nf5 Re5 53. Nd4 Re4 54. Kc3 Ke7 55. Nf5+ Kf6 $1 56. Nd6 Re2 (56... Re3+ $11 57. Kb4 Rxa3 58. Kxa3 Ke5) 57. Kb4 $16 Nd7 58. Rxa4 Ke5 $2 (58... h4 $16 {is a better defense.}) 59. Nxf7+ $18 Kd4 60. Ra7 $2 (60. Kb5 $18) 60... Nc5 $2 {[%mdl 8192]} (60... Nb6 $11 61. Kb5 Nxc4) 61. Nd6 $2 (61. Kb5 $18) 61... Rb2+ 62. Ka5 Rxh2 $2 {[#]} ({Black should try} 62... Nd3 $1 $14) 63. Kb6 $1 $18 Rb2+ 64. Kc6 Nd3 {[#]} 65. Re7 $1 Ne5+ $2 (65... Nb4+ {is more resistant.} 66. Kd7 Kd3) 66. Kc7 $18 Rc2 67. Nf5+ Ke4 68. Nd6+ (68. Kd6 $142 Rxc4 69. Rxe5+ Kf3 70. Ke6) 68... Kd4 $18 69. Nf5+ (69. Nb5+ $142 Kxc4 70. Na3+ Kxd5+ 71. Nxc2) 69... Ke4 $1 $18 70. Kd6 $1 Kxf5 71. Rxe5+ Kg6 72. c5 Rc3 73. c6 Rxg3 74. c7 Rc3 75. Kd7 h4 76. Re6+ ({Stronger than} 76. c8=B g3 77. Re1 g2 $11) 1-0

[Event "45th FIDE Olympiad 2024"]
[Site "Budapest"]
[Date "2024.09.16"]
[Round "6.127"]
[White "Mulenga, Prince Daniel"]
[Black "Wafa, Hamed"]
[Result "1/2-1/2"]
[ECO "D40"]
[WhiteElo "2184"]
[BlackElo "2368"]
[Annotator "TA"]
[PlyCount "120"]
[EventDate "2024.09.05"]
[EventType "team-tourn"]
[EventCountry "HUN"]
[SourceTitle "playchess.com"]
[Source "ChessBase"]
[SourceQuality "1"]
[WhiteTeam "Zambia"]
[BlackTeam "Egypt"]
[WhiteTeamCountry "ZAM"]
[BlackTeamCountry "EGY"]
[TimeControl "40/5400+30:1800+30"]

{[%evp 20,120,18,0,0,0,0,0,0,0,0,0,0,8,6,-20,-5,-29,0,0,33,-22,0,-46,-48,-45,-45,-109,0,0,0,0,112,71,296,316,313,293,497,462,909,908,1116,886,828,914,962,941,1135,1114,910,588,560,552,597,525,587,539,560,118,128,122,291,8,8,0,402,0,0,0,12,14,16,16,100,99,563,499,492,412,570,0,0,0,0,0,0,0,0,0,0,0,0,0,2,2,2,0,0,0,0,0,0]} 1. Nf3 c5 2. c4 Nf6 3. Nc3 Nc6 4. e3 e6 5. d4 cxd4 6. exd4 d5 7. Bd3 Be7 8. O-O O-O 9. a3 dxc4 10. Bxc4 Nd5 11. Qd3 Nxc3 12. bxc3 b6 13. h4 Bb7 14. Ng5 {[%csl Gg5][%cal Rd3h7]} g6 15. Re1 {[%cal Oe1e6]} Bf6 $1 16. Bf4 {[%cal Oe1e6] And now Rxe6! would win.} Ne7 17. Ba2 Rc8 18. Rac1 Nd5 19. Bd2 Qc7 20. Re4 ({White should try} 20. Qf3 $14 Bg7 21. Ne4) 20... Ne7 {[%cal Of6g5]} 21. Rg4 (21. Rf4 $11 {might be stronger.} Nf5 22. Nxe6 fxe6 23. Bxe6+ Kg7 24. Bxc8 Bxc8 (24... Rxc8 25. d5 $14) 25. g4 Bxh4 (25... Nxh4 $2 26. g5 $18) 26. gxf5 Bxf5 27. Qe3) 21... h5 $15 22. Ne4 Bg7 23. Rg5 {[#]} (23. Rf4 $1 $15) 23... Nf5 (23... Bd5 $1 $17 {[%cal Rd5a2]} 24. Bb1 Qc4) 24. g4 $11 hxg4 (24... Nxh4 $6 25. gxh5 Qe7 26. Qh3 Bxe4 27. Qxh4 $16) 25. h5 Qc6 (25... Bd5 $11 {remains equal.} 26. Bxd5 exd5) 26. Re1 $36 {[%mdl 2048] White is really pushing.} Nh6 $2 (26... Nxd4 $16 27. cxd4 Qc2) 27. d5 (27. hxg6 f5 $18) 27... Qd7 (27... exd5 28. Bxd5 Rcd8 29. c4 $18 (29. Bxc6 Rxd3 30. Bxb7 Nf5 $18)) 28. c4 {[%cal Bc3c4,Bc4d5,Bd5d6][%mdl 32]} (28. hxg6 f5 $18) 28... exd5 $2 (28... f5 $2 29. Nd6 e5 (29... Qxd6 $2 30. Rxe6 Qd8 31. Rgxg6 $18) 30. Rxg6 $18 (30. Nxc8 Bxc8 31. Rxg6 Kh7 $18)) (28... Qe7 29. Bb4 (29. hxg6 f5 $18) 29... Qd8 30. Bxf8 (30. hxg6 f5 $11) 30... Kxf8) 29. cxd5 $18 (29. hxg6 f5 30. Nc3 (30. cxd5 fxe4 31. Rxe4 Rf3 $11) (30. Ng3 f4 $14) 30... g3 $18) 29... Nf5 (29... g3 $142 30. Nxg3 (30. Qxg3 Nf5 $18) (30. hxg6 gxf2+ 31. Nxf2 Ba6 $18) 30... Ba6 31. Qxa6 Rc2) 30. hxg6 fxg6 31. Rxg6 Nh4 32. d6+ Kh8 33. Be6 Qc6 34. Rxg4 Nf3+ 35. Kg2 {Rh1+ would kill now.} (35. Kh1 Qe8 36. Rg3 (36. Bxc8 $2 Qh5+ 37. Kg2 Qh2+ 38. Kf1 Bxc8 $19) 36... Qxe6 $11) 35... Nxe1+ 36. Bxe1 {Threatening mate with Qh3+.} Rf6 37. Bxc8 Bxc8 38. Rh4+ Kg8 39. f3 $2 (39. Qc4+ $1 $18 Qxc4 40. Nxf6+ Bxf6 41. Rxc4) 39... Rg6+ $16 40. Bg3 {[%cal Oe4g5] Ng5! is the strong threat.} Be5 $2 {[#]} (40... Qe8 $16 {was called for.} 41. Rh5 Bd7) 41. Nf6+ $2 Kf7 $1 $11 42. Ne4 {aiming for Rh7+. Some like it hot} Bf5 $2 {[%mdl 8192] This pair of bishops is nice.} (42... Kg8 $11) 43. Qb3+ $2 (43. Rh7+ $18 Bg7 44. Rh5 Bxe4 45. fxe4) 43... Kg7 {...Bxe4 would now be deadly.} 44. Kh2 Rxg3 45. Nxg3 {Strongly threatening f4.} Qxd6 {( -> ...Qd2+)} 46. f4 $1 Qd2+ (46... Bxf4 $11 47. Qf3 Be5) 47. Kh1 $16 {[%cal Bh2h1,Bh1g2,Bg2g3,Bg3f3,Bf3e3,Be3d3,Bd3c4,Bc4b3][%mdl 32]} Be4+ {[%mdl 8192]} 48. Nxe4 $18 {White wants to mate with Rh7+.} Qe1+ 49. Kg2 Qxh4 50. Qg3+ (50. Ng3 $18 Kf8 51. fxe5) 50... Qxg3+ $11 {The position is equal.} 51. Kxg3 {[%mdl 4096] Endgame. KB-KN} Bb2 52. a4 Kf8 53. Kf3 Ke7 54. f5 Kd7 55. Ke3 Be5 56. Kd3 a6 57. Kc4 Kc6 58. Nd2 b5+ 59. axb5+ axb5+ 60. Kb3 Bf6 {Weighted Error Value: White=0.68/Black=0.61.  Loses game:     	---       	Black=4      Missed win:     	White=4     	---        Mistake:       	White=3     	Black=5      Inaccurate:     	White=2     	Black=3      OK:         	White=14    	Black=14     Best:        	White=6     	Black=5      Strong:       	White=1     	Black=2} 1/2-1/2

[Event "45th FIDE Olympiad 2024"]
[Site "Budapest"]
[Date "2024.09.16"]
[Round "6.128"]
[White "Sadek, Sameh"]
[Black "Kaoma, Micheal"]
[Result "1-0"]
[ECO "D30"]
[WhiteElo "2269"]
[BlackElo "2161"]
[Annotator "TA"]
[PlyCount "67"]
[EventDate "2024.09.05"]
[EventType "team-tourn"]
[EventCountry "HUN"]
[SourceTitle "playchess.com"]
[Source "ChessBase"]
[SourceQuality "1"]
[WhiteTeam "Egypt"]
[BlackTeam "Zambia"]
[WhiteTeamCountry "EGY"]
[BlackTeamCountry "ZAM"]
[TimeControl "40/5400+30:1800+30"]

{[%evp 9,67,-9,-14,-18,22,6,72,64,65,63,90,79,76,82,81,43,56,47,44,54,78,48,64,37,85,8,86,10,79,0,98,69,143,48,75,29,61,64,70,52,141,143,175,162,211,215,275,281,566,590,611,611,610,612,605,608,592,494,494,488]} 1. d4 d5 2. c4 e6 3. Nf3 Nf6 4. Nbd2 c5 5. e3 Nc6 6. a3 Be7 7. dxc5 dxc4 (7... a5 $11 {keeps the balance.}) 8. Bxc4 $16 {White is better.} Bxc5 9. b4 Be7 10. Bb2 O-O 11. O-O Bd7 12. e4 {[%cal Be3e4,Be4e5][%mdl 32]} a6 13. e5 Nd5 14. Ne4 {[%cal Oe4d6]} Nb6 15. Bd3 {White has more active pieces.} Na7 16. Bb1 {[%cal Oe4f6] Black is weak on the dark squares} Ba4 (16... Bc6 $1 $14) 17. Qc1 ({Better is} 17. Qe2 $16 {[%cal Oe4f6] Threatens to win with Nf6+!} Nd5 (17... Bb5 18. Qc2 $16) 18. Qd2) 17... Nd5 {Dodges Nf6+} (17... Rc8 $1 $11 18. Qf4 Nd5) 18. Nc5 (18. Re1 $16) 18... Bxc5 (18... Rc8 $11 19. Qd2 Bc6 (19... Bxc5 20. bxc5 Ne7 21. Qe3 $14)) 19. Qxc5 (19. bxc5 $16 {aiming for Ng5.} Rc8 20. Qc4) 19... Qb6 (19... Qe7 $11 {remains equal.}) 20. Qc4 $40 {[%mdl 128] Qd3 is the strong threat. White mounts an attack.} Qd8 (20... Rfc8 $1 $14 21. Qd3 g6) 21. Qe4 (21. Qd3 $16 {[%csl Gb1][%cal Rd3h7]} g6 22. Qd2) 21... g6 $14 22. Ba2 (22. Bc1 $16) 22... Nb5 23. Rac1 Nbc7 $1 24. Qg4 Rc8 {[#]} ({Black should play} 24... h5 $14 25. Qg3 Nb5) 25. Ng5 $1 $16 {[%cal Bf3g5,Bg5e4,Be4f6,Bf6d5,Bd5f6,Bf6e8][%mdl 32]} Kg7 26. Ne4 Qe7 (26... h5 {was necessary.} 27. Qg3 Rh8) 27. Bd4 b6 28. Nf6 {Hoping for Bxd5.} h6 $2 (28... Qd8 29. h4 Ra8) 29. Bxd5 $18 {White is clearly winning.} exd5 30. e6 Qxe6 31. Nxd5+ ({Not} 31. Qxe6 Nxe6 32. Ne8+ (32. Nxd5+ Nxd4 33. Rxc8 Rxc8 $17) 32... Kg8 33. Rxc8 Bxe8 $18) 31... Kh7 32. Nf6+ (32. Nxc7 $2 {loses.} Qxg4 33. Bxb6 Rfd8 $19) 32... Kg7 {[#]} 33. Rxc7 $1 {[%mdl 512]} Rxc7 34. Ne8+ {Weighted Error Value: White=0.23 (precise) /Black=0.52.  Mistake:       	White=5     	Black=9      Inaccurate:     	White=2     	Black=3      OK:         	White=10    	Black=5      Best:        	White=1     	Black=1      Strong:       	White=1     	Black=1} 1-0

[Event "45th FIDE Olympiad 2024"]
[Site "Budapest"]
[Date "2024.09.16"]
[Round "6.129"]
[White "Dardha, Daniel"]
[Black "Santos Flores, Alberto"]
[Result "1-0"]
[ECO "D15"]
[WhiteElo "2603"]
[BlackElo "2168"]
[Annotator "TA"]
[PlyCount "63"]
[EventDate "2024.09.05"]
[EventType "team-tourn"]
[EventCountry "HUN"]
[SourceTitle "playchess.com"]
[Source "ChessBase"]
[SourceQuality "1"]
[WhiteTeam "Belgium"]
[BlackTeam "Ecuador"]
[WhiteTeamCountry "BEL"]
[BlackTeamCountry "ECU"]
[TimeControl "40/5400+30:1800+30"]

{[%evp 15,63,13,20,10,26,14,15,16,13,10,0,-10,-8,-15,0,-7,-4,0,23,21,190,197,188,179,189,186,190,187,179,201,387,378,751,748,1310,1300,1104,1097,1032,236,29978,29979,29990,29990,29993,29994,29994,29995,29995,29993]} 1. c4 c6 2. Nf3 d5 3. e3 Nf6 4. d4 a6 5. Nc3 b5 6. b3 Bg4 7. h3 Bxf3 8. Qxf3 e5 9. dxe5 Bb4 $1 10. Bd2 Bxc3 $1 11. Bxc3 {The position is equal.} Ne4 12. Bb4 bxc4 $1 {Strongly threatening ...Qb6.} 13. bxc4 {Qg4 is the strong threat.} Qb6 $1 14. Rb1 {[%cal Ba1b1,Bb1c1,Bc1c7][%mdl 32]} a5 $1 15. cxd5 $1 cxd5 16. Bc4 {A strong pair of Bishops.} Qc6 (16... axb4 $2 17. Bxd5 Ng5 18. Bxf7+ Nxf7 19. Qxa8 $18) (16... Qb7 $5 17. e6 Nf6 $16 (17... dxc4 $2 18. exf7+ Qxf7 19. Qxe4+ Kd7 20. Qxa8 $18) (17... axb4 $2 18. Bxd5 Ng5 19. exf7+ Kf8 20. Qf5 $18)) 17. e6 $1 Nf6 $2 {[#] This move loses the game for Black.} (17... fxe6 $11 {and Black is okay.} 18. Qh5+ Kd7) 18. Ba3 $1 $18 (18. exf7+ Kxf7 19. Bb3 axb4 $17) 18... Qxc4 (18... dxc4 19. Rxb8+ Rxb8 20. Qxc6+ Kd8 21. e7#) 19. Rc1 {Prevents Qc3+} Qa6 {[#]} ({Weaker is} 19... Qxa2 20. Rc8#) 20. exf7+ Kxf7 {[%cal Be8f7,Bf7g8,Bg8g7,Bg7h6,Bh6g6][%mdl 32] Threatens to win with ...Rc8.} 21. Rc7+ Kg8 22. Qf5 $40 {[%mdl 128] Prevents Nbd7. White goes for the king.} g6 $2 (22... Nbd7) 23. Qe5 Nbd7 $2 {[#]} (23... Qb6 24. O-O (24. Rc8+ Kg7 $18) 24... Nbd7 25. Rxd7 Nxd7 26. Qxd5+ Kg7) 24. Rxd7 $1 {[%mdl 512]} Nxd7 (24... Qb6 25. Rc7) 25. Qxd5+ Kg7 26. Qxd7+ Kh6 27. g4 $2 (27. Bb2 {Threatening mate with Bg7+.} Rhg8 28. g4 Qc4 29. f4 Qb4+ 30. Kf1 g5 31. Qe6+ (31. Qc6+ Rg6 32. fxg5+ Kxg5 33. Qd5+ Kh4 34. Qh5+ Kg3 35. Rg1+ Kf3 36. Qd5+ Qe4 37. Qd1+ Kxe3 38. Bc1#) 31... Rg6 32. fxg5+ Kxg5 33. Qf5+ Kh4 34. Bf6+ Rxf6 35. Qxf6+ Kg3 36. Qf2#) 27... Qc4 $2 (27... Qc8 $18 28. Qd4 Qe6) 28. f4 {[%cal Bf2f4,Bf4g5][%mdl 32] White mates.} Qc3+ 29. Kf2 Qc2+ 30. Kg3 g5 31. fxg5+ Kg6 32. Rc1 {Weighted Error Value: White=0.21 (precise) /Black=0.56.  Loses game:     	---       	Black=1      Mistake:       	---       	Black=2      Inaccurate:     	---       	Black=1      OK:         	White=8     	Black=3      Best:        	White=1     	Black=1      Strong:       	White=3     	Black=5      Brilliant:      	White=1     	---} 1-0

[Event "45th FIDE Olympiad 2024"]
[Site "Budapest"]
[Date "2024.09.16"]
[Round "6.130"]
[White "Noboa Silva, Kevin"]
[Black "Vandenbussche, Thibaut"]
[Result "1-0"]
[ECO "A40"]
[WhiteElo "2270"]
[BlackElo "2461"]
[Annotator "RC"]
[PlyCount "179"]
[EventDate "2024.09.05"]
[EventType "team-tourn"]
[EventCountry "HUN"]
[SourceTitle "playchess.com"]
[Source "ChessBase"]
[SourceQuality "1"]
[WhiteTeam "Ecuador"]
[BlackTeam "Belgium"]
[WhiteTeamCountry "ECU"]
[BlackTeamCountry "BEL"]
[TimeControl "40/5400+30:1800+30"]

1. d4 e6 2. c4 Bb4+ 3. Bd2 Bxd2+ 4. Qxd2 Nf6 5. Nc3 O-O 6. e3 b6 7. Bd3 Bb7 8. Nge2 d5 9. cxd5 Nxd5 10. O-O Nxc3 11. Nxc3 Nd7 12. Be4 Qc8 13. Rac1 Nf6 14. Bxb7 Qxb7 15. b4 Rfd8 16. Qb2 Rd7 17. Rc2 Re8 18. Rfc1 e5 19. Nb5 exd4 20. Rxc7 Rxc7 21. Rxc7 Qd5 22. Nxd4 Qe5 23. Qc1 Nd5 24. Rc8 g6 25. Nf3 Qe7 26. Rxe8+ Qxe8 27. Qc4 Qd7 28. h3 Ne7 29. Ne5 Qd1+ 30. Kh2 Qd5 31. Qc7 Qe6 32. Nd7 Kg7 33. a3 Nd5 34. Qe5+ Qxe5+ 35. Nxe5 a5 36. bxa5 bxa5 37. Nc4 a4 38. Kg3 f5 39. Kf3 Nc3 40. Nd2 Kf7 41. Kf4 Nd1 42. e4 Kf6 43. exf5 g5+ 44. Kf3 Kxf5 45. Nc4 Nc3 46. Ke3 Nb5 47. g4+ Ke6 48. Ke4 Nc3+ 49. Kd4 Ne2+ 50. Kd3 Nf4+ 51. Ke3 Nxh3 52. Nb6 Nf4 53. Nxa4 Ke5 54. Nc5 Nd5+ 55. Kf3 Nc3 56. Nd7+ Kd6 57. Nf6 Nb5 58. Nxh7 Nxa3 59. Ke4 Ke6 60. Nxg5+ Kf6 61. f4 Nc4 62. Nf3 Nd6+ 63. Ke3 Nc4+ 64. Kf2 Ke6 65. Kg3 Ne3 66. Nd2 Kf6 67. Kf3 Nd5 68. Ne4+ Ke6 69. Ng3 Kf6 70. Ne2 Ke6 71. Nd4+ Kf6 72. Kg3 Ne3 73. Kf3 Nd5 74. Nc2 Ke6 75. Ne3 Nc3 76. g5 Nb5 77. Kg4 Nd4 78. f5+ Kf7 79. Nd5 Kg7 80. Nf4 Kf7 81. Nd3 Nc6 82. Kf4 Ke7 83. Ne5 Nd4 84. g6 Kf6 85. Ng4+ Kg7 86. Kg5 Nf3+ 87. Kh5 Nd4 88. f6+ Kh8 89. g7+ Kh7 90. Nh6 1-0

[Event "45th FIDE Olympiad 2024"]
[Site "Budapest"]
[Date "2024.09.16"]
[Round "6.131"]
[White "Maerevoet, Sim"]
[Black "Garzon Zapatanga, Christopher Leonel"]
[Result "1/2-1/2"]
[ECO "B90"]
[WhiteElo "2432"]
[BlackElo "2216"]
[Annotator "TA"]
[PlyCount "81"]
[EventDate "2024.09.05"]
[EventType "team-tourn"]
[EventCountry "HUN"]
[SourceTitle "playchess.com"]
[Source "ChessBase"]
[SourceQuality "1"]
[WhiteTeam "Belgium"]
[BlackTeam "Ecuador"]
[WhiteTeamCountry "BEL"]
[BlackTeamCountry "ECU"]
[TimeControl "40/5400+30:1800+30"]

{[%evp 11,81,12,10,11,5,0,39,33,26,33,44,0,0,-10,0,1,7,-3,25,18,86,61,114,109,104,71,62,49,86,0,0,-18,0,-12,-7,-33,-43,-41,-39,-140,-212,-149,-141,-120,-118,-287,-262,-273,-283,-279,-260,-332,-96,-120,-28,-28,-18,-15,-15,-16,-18,-29,-8,-8,-8,-8,-8,-8,-8,-8,-8,-8]} 1. e4 c5 2. Nf3 d6 3. d4 cxd4 4. Nxd4 Nf6 {[%cal Bg8f6,Bf6d7,Bd7c5][%mdl 32]} 5. Nc3 a6 6. h3 e5 7. Nf3 Be7 8. g4 {[%cal Bg2g4,Bg4g5][%mdl 32]} Nc6 9. g5 {White is slightly better.} Nd7 10. Be3 Nc5 11. Bc4 Be6 12. Bd5 Qc7 13. a3 O-O 14. h4 b5 15. g6 b4 (15... Na4 $1 $11 {keeps the balance.}) 16. axb4 {White is more active.} (16. gxf7+ {with more complications.} Bxf7 17. Bxf7+ Rxf7 18. Nd5) 16... Nxb4 17. Bxa8 Rxa8 18. gxh7+ Kh8 {[%cal Oc5e4]} 19. Rc1 f5 20. exf5 (20. Nd5 $16 Nxd5 21. exd5) 20... Bxf5 $11 {This pair of bishops is nice.} 21. Ng5 Bxg5 22. hxg5 d5 23. Qf3 Nxc2+ 24. Rxc2 Bxc2 25. Qxd5 (25. O-O $15 Nb3 26. Qxd5 (26. Nxd5 Qb7 $15)) 25... Nd3+ $17 26. Kf1 Rd8 27. Qe4 Ne1 (27... Nxb2 28. Qxc2 Qc4+ 29. Kg2 Qg4+ 30. Kf1 Qc4+ 31. Qe2 Qxc3 32. Rh3 $16 (32. Qxa6 Nc4 $15)) 28. Qg4 (28. Bb6 $17 Qxb6 (28... Bxe4 29. Bxc7 Bxh1 30. Bxd8 $11) 29. Qxe1) 28... Qb7 $19 29. Rh3 Qxb2 30. Bd2 {[#]} (30. Ne4 $2 Qb5+ (30... Qb1 $2 31. f3 $19) 31. Kg1 Qb1 $19) 30... Nd3 {[%cal Od3f2] Hoping for ...Nxf2!} 31. g6 Qb7 (31... Nxf2 $19 32. Qg5 Qb6 (32... Nxh3 33. Qxd8#)) 32. Qe4 Qxe4 (32... Qb8 $17 {[%cal Od3f2] aiming for ...Nxf2!} 33. Rg3 Nb4) 33. Nxe4 $11 {[#]} Nxf2 $1 34. Kxf2 Bxe4 $17 {[%mdl 4096] Endgame. KRB-KRB} 35. Bc3 Bxg6 (35... Re8 {is interesting.} 36. Rg3 Re6 37. Rg5 Bxg6 38. Rxe5 Rf6+) 36. Bxe5 Bxh7 37. Rg3 {The position is equal.} Rd2+ 38. Ke1 Rd7 39. Rxg7 Rxg7 40. Kd2 Kg8 41. Bxg7 {Black had all chances to win.   Weighted Error Value: White=0.24 (precise) /Black=0.20 (precise) .  Loses game:     	White=1     	---        Missed win:     	---       	Black=1      Mistake:       	White=2     	Black=2      Inaccurate:     	White=3     	Black=4      OK:         	White=13    	Black=9      Best:        	White=2     	Black=5} 1/2-1/2

[Event "45th FIDE Olympiad 2024"]
[Site "Budapest"]
[Date "2024.09.16"]
[Round "6.132"]
[White "Munoz Sanchez, Miguel"]
[Black "Hovhannisyan, Mher"]
[Result "1/2-1/2"]
[ECO "C00"]
[WhiteElo "2181"]
[BlackElo "2414"]
[Annotator "TA"]
[PlyCount "106"]
[EventDate "2024.09.05"]
[EventType "team-tourn"]
[EventCountry "HUN"]
[SourceTitle "playchess.com"]
[Source "ChessBase"]
[SourceQuality "1"]
[WhiteTeam "Ecuador"]
[BlackTeam "Belgium"]
[WhiteTeamCountry "ECU"]
[BlackTeamCountry "BEL"]
[TimeControl "40/5400+30:1800+30"]

{[%evp 13,106,-18,-17,-23,-23,-41,-28,-70,-60,-60,-36,-73,-44,-66,-33,-73,-50,-61,-52,-59,16,8,18,15,16,14,12,0,0,-43,0,0,32,-13,7,0,24,34,36,20,30,30,23,20,38,39,33,37,56,55,39,20,73,71,135,137,150,132,145,133,174,99,93,43,216,197,378,390,351,350,623,613,576,333,342,31,29,0,0,0,0,0,0,0,0,0,0,0,0,0,0,0,0,0,0]} 1. e4 e6 2. Qe2 Be7 3. Nf3 d5 4. d3 Nf6 5. g3 b5 6. Bg2 {C00: French: Unusual White 2nd moves.} Bb7 7. e5 Nfd7 8. O-O c5 9. h4 Nc6 10. Bf4 h6 11. h5 b4 $146 ({Predecessor:} 11... a5 12. a4 b4 13. Nbd2 Nb6 14. Rfe1 Ba6 15. c4 bxc3 16. bxc3 Rb8 17. g4 Qd7 {0-1 Congiu,M (2274)-McDonald,N (2415) BCF-chT1a 1516 (4NCL) 2015 (6.135)}) 12. c3 bxc3 13. bxc3 Ba6 14. Nbd2 Nb6 15. Rfd1 Na4 16. Rdc1 $1 Nb2 (16... O-O $15) 17. Ne1 $11 c4 18. Qg4 Kf8 19. Rab1 Rb8 $1 20. d4 Kg8 21. Be3 Ba3 22. Nc2 Bf8 23. f4 Na4 (23... Qa5 {seems wilder.} 24. f5 Bc8 25. f6 Qxc3 26. Be4 Nd8) 24. f5 (24. Rxb8 {simplifies} Qxb8 25. Nb1 Ne7 26. Bd2) 24... Rxb1 25. Nxb1 exf5 26. Qxf5 Bc8 27. Qf2 Be6 28. Ne1 Be7 29. Bf3 Nb6 30. Ng2 Qd7 31. Rf1 Bg5 32. Bd1 Ne7 (32... Nd8 $11) 33. Bc2 $16 Bxe3 (33... Qe8 $142) 34. Nxe3 $16 Nc6 35. Qf4 Qe7 36. Nd2 Qg5 37. Nf3 ({Better is} 37. Qxg5 $18 hxg5 38. g4) 37... Qxh5 $16 {[#]} 38. Nf5 $1 g5 $2 (38... g6 $1 $14 39. Nd6 Qg4) 39. Qe3 $18 Qh3 $2 (39... Bxf5 40. Bxf5 Ne7) 40. Nh2 $18 Nc8 41. Rf3 g4 $2 (41... Qh5 42. g4 Qg6) 42. Rf4 $18 N8e7 43. Rxg4+ Kf8 44. Nxe7 $2 (44. Qf3 $18 Ng6 45. Rxg6 (45. Nd6 $2 Ncxe5 46. dxe5 Nxe5 $19) 45... fxg6 46. Ne3+ (46. Nxh6+ Ke8 $17) 46... Ke8 47. Qf6 (47. Bxg6+ Kd8 $18) 47... Qxg3+ 48. Ng2) 44... Nxe7 $14 45. Rh4 (45. Qf4 $5 Rg8 (45... Bxg4 $2 46. Nxg4 Kg8 47. Kf2 $18) 46. Rxg8+ Nxg8 47. Nf1 $14) 45... Nf5 $1 46. Bxf5 (46. Rxh3 $2 {too greedy.} Nxe3 47. g4 Nxc2 $19) 46... Qxf5 47. Rxh6 Qb1+ 48. Nf1 Rxh6 49. Qxh6+ Ke8 50. Qh8+ Kd7 51. Qa8 Qxa2 52. Qb7+ Ke8 53. Qb8+ Kd7 1/2-1/2